[Event "*** Titled Tuesday Blitz"]
[Site "Chess.com"]
[Date "2020.01.07"]
[Round "6"]
[White "AleksanderHnydiuk"]
[Black "riconaipe"]
[Result "0-1"]
[WhiteElo "2423"]
[BlackElo "2584"]
[TimeControl "180+2"]
[EndTime "14:25:50 PST"]
[Termination "riconaipe won by resignation"]

1. Nf3 {[%clk 0:03:01.9]} 1... d5 {[%clk 0:02:52.4]} 2. d4 {[%clk 0:03:02.3]}
2... Nf6 {[%clk 0:02:52.2]} 3. c4 {[%clk 0:03:03.3]} 3... e6 {[%clk 0:02:53.2]}
4. g3 {[%clk 0:03:04.2]} 4... Be7 {[%clk 0:02:54]} 5. Bg2 {[%clk 0:03:05.2]}
5... O-O {[%clk 0:02:55.7]} 6. Qc2 {[%clk 0:03:06.4]} 6... a6 {[%clk 0:02:52.5]}
7. Nbd2 {[%clk 0:03:07.1]} 7... dxc4 {[%clk 0:02:52.8]} 8. Nxc4 {[%clk 0:03:08]}
8... Nc6 {[%clk 0:02:51.7]} 9. O-O {[%clk 0:03:05.5]} 9... Nxd4 {[%clk 0:02:46]}
10. Nxd4 {[%clk 0:03:06.6]} 10... Qxd4 {[%clk 0:02:47.2]} 11. Rd1 {[%clk
0:03:06.5]} 11... Qc5 {[%clk 0:02:46.6]} 12. Be3 {[%clk 0:03:06]} 12... Qh5
{[%clk 0:02:47.5]} 13. h3 {[%clk 0:02:47]} 13... e5 {[%clk 0:02:48.5]} 14. g4
{[%clk 0:02:41.6]} 14... Bxg4 {[%clk 0:02:48.9]} 15. hxg4 {[%clk 0:02:43.1]}
15... Nxg4 {[%clk 0:02:49.6]} 16. Qe4 {[%clk 0:02:20.3]} 16... c6 {[%clk
0:02:33.5]} 17. Qf3 {[%clk 0:01:41.8]} 17... f5 {[%clk 0:02:16.2]} 18. Bh3
{[%clk 0:01:36.3]} 18... e4 {[%clk 0:01:27.3]} 19. Bxg4 {[%clk 0:01:35]} 19...
fxg4 {[%clk 0:01:29.2]} 20. Qxe4 {[%clk 0:01:30.7]} 20... Rae8 {[%clk
0:01:29.5]} 21. Rd7 {[%clk 0:00:58.9]} 21... Bh4 {[%clk 0:01:02.8]} 22. Qd4
{[%clk 0:00:44.3]} 22... Bf6 {[%clk 0:00:59]} 23. Qc5 {[%clk 0:00:43]} 23... Qh3
{[%clk 0:00:47.1]} 24. Qd6 {[%clk 0:00:18.5]} 24... g3 {[%clk 0:00:36]} 25. Qxg3
{[%clk 0:00:18.5]} 25... Qxd7 {[%clk 0:00:36.3]} 26. Bc5 {[%clk 0:00:16]} 26...
Re4 {[%clk 0:00:24.9]} 27. Ne3 {[%clk 0:00:11.7]} 27... Rfe8 {[%clk 0:00:23.6]}
28. Rd1 {[%clk 0:00:10.9]} 28... Qf7 {[%clk 0:00:22.1]} 29. Nf5 {[%clk
0:00:10.3]} 29... Qg6 {[%clk 0:00:13.6]} 30. Qxg6 {[%clk 0:00:07.7]} 30... hxg6
{[%clk 0:00:15.5]} 31. Nd6 {[%clk 0:00:07.7]} 31... Rg4+ {[%clk 0:00:16.5]} 32.
Kf1 {[%clk 0:00:09]} 32... Re5 {[%clk 0:00:14.8]} 33. b4 {[%clk 0:00:08.8]}
33... Rh5 {[%clk 0:00:13.9]} 34. e3 {[%clk 0:00:09.5]} 34... Rh1+ {[%clk
0:00:13.6]} 35. Ke2 {[%clk 0:00:11.1]} 35... Rxd1 {[%clk 0:00:15.5]} 36. Kxd1
{[%clk 0:00:12.9]} 36... Be7 {[%clk 0:00:16.1]} 37. Nxb7 {[%clk 0:00:12.5]}
37... Bxc5 {[%clk 0:00:16.6]} 38. bxc5 {[%clk 0:00:13.4]} 38... Ra4 {[%clk
0:00:15.3]} 39. Nd8 {[%clk 0:00:14.3]} 39... Rxa2 {[%clk 0:00:10.4]} 40. Nxc6
{[%clk 0:00:15]} 40... Rxf2 {[%clk 0:00:11.8]} 41. Ne7+ {[%clk 0:00:14.1]} 41...
Kf7 {[%clk 0:00:11.9]} 42. Nd5 {[%clk 0:00:14.6]} 42... Ke6 {[%clk 0:00:11.7]}
43. Nf4+ {[%clk 0:00:15.2]} 43... Kd7 {[%clk 0:00:08.7]} 44. Nxg6 {[%clk
0:00:16.3]} 44... Kc6 {[%clk 0:00:09.9]} 45. Ne5+ {[%clk 0:00:17.5]} 45... Kd5
{[%clk 0:00:10.3]} 46. Nd3 {[%clk 0:00:17.2]} 46... Rh2 {[%clk 0:00:09.5]} 47.
Nb4+ {[%clk 0:00:17.1]} 47... Kxc5 {[%clk 0:00:09.2]} 48. Nxa6+ {[%clk
0:00:18.6]} 48... Kc4 {[%clk 0:00:10.6]} 49. e4 {[%clk 0:00:16.7]} 49... Kd4
{[%clk 0:00:07.3]} 50. e5 {[%clk 0:00:13.4]} 50... Kxe5 {[%clk 0:00:07.3]} 51.
Nc5 {[%clk 0:00:14.6]} 51... g5 {[%clk 0:00:05.7]} 52. Ke1 {[%clk 0:00:15.2]}
52... g4 {[%clk 0:00:05.8]} 53. Kf1 {[%clk 0:00:16.3]} 53... g3 {[%clk
0:00:05.6]} 54. Kg1 {[%clk 0:00:17.4]} 54... Ra2 {[%clk 0:00:07]} 55. Nd3+
{[%clk 0:00:17.8]} 55... Ke4 {[%clk 0:00:06.6]} 56. Nc5+ {[%clk 0:00:18.1]}
56... Kf3 {[%clk 0:00:07.8]} 57. Nb3 {[%clk 0:00:19.3]} 57... Rb2 {[%clk
0:00:06.6]} 58. Nd4+ {[%clk 0:00:19.8]} 58... Kg4 {[%clk 0:00:08]} 59. Ne6
{[%clk 0:00:18.5]} 59... Rb1+ {[%clk 0:00:09]} 60. Kg2 {[%clk 0:00:19]} 60...
Rb2+ {[%clk 0:00:10.9]} 61. Kg1 {[%clk 0:00:20.3]} 61... Rd2 {[%clk 0:00:10.6]}
62. Kf1 {[%clk 0:00:19]} 62... g2+ {[%clk 0:00:10.3]} 63. Kg1 {[%clk 0:00:20.2]}
63... Kg3 {[%clk 0:00:11.1]} 0-1

[Event "*** Titled Tuesday Blitz"]
[Site "Chess.com"]
[Date "2020.01.07"]
[Round "6"]
[White "moro182"]
[Black "AndrewMaco"]
[Result "1/2-1/2"]
[WhiteElo "2749"]
[BlackElo "2628"]
[TimeControl "180+2"]
[EndTime "14:25:59 PST"]
[Termination "Game drawn - insufficient material"]

1. d4 {[%clk 0:03:01.9]} 1... Nf6 {[%clk 0:03:00.6]} 2. c4 {[%clk 0:03:03.3]}
2... e6 {[%clk 0:03:01.4]} 3. Nc3 {[%clk 0:03:03.5]} 3... Bb4 {[%clk 0:03:01.3]}
4. e3 {[%clk 0:03:04.9]} 4... O-O {[%clk 0:03:01.7]} 5. Bd3 {[%clk 0:03:06.4]}
5... d5 {[%clk 0:03:02.3]} 6. Nf3 {[%clk 0:03:07.7]} 6... dxc4 {[%clk
0:03:03.7]} 7. Bxc4 {[%clk 0:03:08.9]} 7... c5 {[%clk 0:03:05.6]} 8. a3 {[%clk
0:03:07.6]} 8... Bxc3+ {[%clk 0:03:06.3]} 9. bxc3 {[%clk 0:03:09.5]} 9... Qc7
{[%clk 0:03:07.4]} 10. Ba2 {[%clk 0:03:09.3]} 10... b6 {[%clk 0:03:07.1]} 11.
O-O {[%clk 0:03:10.6]} 11... Ba6 {[%clk 0:02:56.4]} 12. Re1 {[%clk 0:03:11.2]}
12... Nc6 {[%clk 0:02:56.5]} 13. e4 {[%clk 0:03:02.4]} 13... Na5 {[%clk
0:02:50.4]} 14. e5 {[%clk 0:02:58.1]} 14... Nd5 {[%clk 0:02:50.3]} 15. Bb1
{[%clk 0:02:51.7]} 15... g6 {[%clk 0:02:31.1]} 16. Bd2 {[%clk 0:02:36.6]} 16...
Bc4 {[%clk 0:02:21.8]} 17. Be4 {[%clk 0:02:24.9]} 17... Rad8 {[%clk 0:02:08.2]}
18. Ng5 {[%clk 0:02:17.4]} 18... Nb3 {[%clk 0:01:53.8]} 19. Rb1 {[%clk
0:02:00.6]} 19... Nxd2 {[%clk 0:01:53.6]} 20. Qxd2 {[%clk 0:02:02.5]} 20... h6
{[%clk 0:01:48.7]} 21. Nf3 {[%clk 0:01:47]} 21... Kg7 {[%clk 0:01:47.4]} 22. h4
{[%clk 0:01:47.4]} 22... Qe7 {[%clk 0:01:46.7]} 23. h5 {[%clk 0:01:47.9]} 23...
g5 {[%clk 0:01:48]} 24. g3 {[%clk 0:01:44.2]} 24... Rc8 {[%clk 0:01:45]} 25. a4
{[%clk 0:01:42.1]} 25... Rfd8 {[%clk 0:01:43.7]} 26. Nh2 {[%clk 0:01:37.1]}
26... f5 {[%clk 0:01:18.3]} 27. exf6+ {[%clk 0:01:29.5]} 27... Nxf6 {[%clk
0:01:19.5]} 28. Bg2 {[%clk 0:01:12.5]} 28... Nxh5 {[%clk 0:00:54.2]} 29. a5
{[%clk 0:01:13]} 29... b5 {[%clk 0:00:52.9]} 30. Ng4 {[%clk 0:01:10.2]} 30... a6
{[%clk 0:00:43.7]} 31. Qe3 {[%clk 0:00:55.4]} 31... cxd4 {[%clk 0:00:37.4]} 32.
cxd4 {[%clk 0:00:47]} 32... Qd6 {[%clk 0:00:33.4]} 33. Rbd1 {[%clk 0:00:42.4]}
33... Rc7 {[%clk 0:00:23.6]} 34. d5 {[%clk 0:00:41.5]} 34... exd5 {[%clk
0:00:21.5]} 35. Qd4+ {[%clk 0:00:40.2]} 35... Nf6 {[%clk 0:00:22.8]} 36. Re3
{[%clk 0:00:33]} 36... Rf8 {[%clk 0:00:17.3]} 37. Rde1 {[%clk 0:00:31.2]} 37...
Qc5 {[%clk 0:00:17.9]} 38. Qe5 {[%clk 0:00:19.9]} 38... Rcf7 {[%clk 0:00:18]}
39. Rf3 {[%clk 0:00:17.9]} 39... Qc7 {[%clk 0:00:11.6]} 40. Qd4 {[%clk
0:00:16.9]} 40... h5 {[%clk 0:00:11.2]} 41. Nxf6 {[%clk 0:00:17.4]} 41... Rxf6
{[%clk 0:00:13.1]} 42. Re6 {[%clk 0:00:18.8]} 42... Qd8 {[%clk 0:00:11.8]} 43.
Rf5 {[%clk 0:00:16.5]} 43... Kg6 {[%clk 0:00:12.2]} 44. Rfxf6+ {[%clk
0:00:13.3]} 44... Rxf6 {[%clk 0:00:14.1]} 45. Be4+ {[%clk 0:00:14.7]} 45... Kf7
{[%clk 0:00:12.1]} 46. Rxf6+ {[%clk 0:00:14.9]} 46... Qxf6 {[%clk 0:00:14]} 47.
Bxd5+ {[%clk 0:00:16.5]} 47... Kg7 {[%clk 0:00:11]} 48. Qa7+ {[%clk 0:00:15]}
48... Kh6 {[%clk 0:00:11]} 49. Be4 {[%clk 0:00:15.7]} 49... Bf7 {[%clk
0:00:09.9]} 50. Qb6 {[%clk 0:00:14.3]} 50... Kg7 {[%clk 0:00:11]} 51. Bb7 {[%clk
0:00:11.7]} 51... Qxb6 {[%clk 0:00:07.3]} 52. axb6 {[%clk 0:00:13.6]} 52... b4
{[%clk 0:00:08.7]} 53. Bxa6 {[%clk 0:00:14.7]} 53... Bd5 {[%clk 0:00:08.7]} 54.
b7 {[%clk 0:00:15.6]} 54... Bxb7 {[%clk 0:00:09.9]} 55. Bxb7 {[%clk 0:00:17.5]}
55... b3 {[%clk 0:00:11.4]} 56. Be4 {[%clk 0:00:18.4]} 56... b2 {[%clk
0:00:12.6]} 57. Kg2 {[%clk 0:00:18.9]} 57... g4 {[%clk 0:00:14]} 58. Kf1 {[%clk
0:00:19.2]} 58... Kf6 {[%clk 0:00:15.3]} 59. Ke2 {[%clk 0:00:20.8]} 59... Kg5
{[%clk 0:00:16.5]} 60. Ke3 {[%clk 0:00:15.5]} 60... h4 {[%clk 0:00:17.6]} 61.
gxh4+ {[%clk 0:00:09.9]} 61... Kxh4 {[%clk 0:00:19.5]} 62. Kf4 {[%clk
0:00:09.3]} 62... Kh3 {[%clk 0:00:20.8]} 63. Kg5 {[%clk 0:00:03]} 63... b1=Q
{[%clk 0:00:19.3]} 64. Bxb1 {[%clk 0:00:03.5]} 64... Kg2 {[%clk 0:00:21]} 65.
Kxg4 {[%clk 0:00:05.1]} 65... Kxf2 {[%clk 0:00:22.5]} 1/2-1/2

[Event "*** Titled Tuesday Blitz"]
[Site "Chess.com"]
[Date "2020.01.07"]
[Round "6"]
[White "Chimpinha"]
[Black "joejan"]
[Result "1/2-1/2"]
[WhiteElo "2383"]
[BlackElo "2154"]
[TimeControl "180+2"]
[EndTime "14:26:05 PST"]
[Termination "Game drawn by agreement"]

1. d4 {[%clk 0:03:00.5]} 1... Nf6 {[%clk 0:02:59.6]} 2. c4 {[%clk 0:03:01.5]}
2... e6 {[%clk 0:03:00.3]} 3. Nc3 {[%clk 0:03:02.1]} 3... Bb4 {[%clk 0:02:59.2]}
4. Nf3 {[%clk 0:03:03.1]} 4... c5 {[%clk 0:02:57.1]} 5. g3 {[%clk 0:03:02.1]}
5... cxd4 {[%clk 0:02:56.9]} 6. Nxd4 {[%clk 0:03:03.2]} 6... Nc6 {[%clk
0:02:58.2]} 7. Bg2 {[%clk 0:02:49.6]} 7... O-O {[%clk 0:02:57.7]} 8. O-O {[%clk
0:02:49.6]} 8... e5 {[%clk 0:02:43.3]} 9. Ndb5 {[%clk 0:02:49.8]} 9... a6 {[%clk
0:02:39.6]} 10. Nd6 {[%clk 0:02:42.6]} 10... Bxc3 {[%clk 0:02:19.6]} 11. bxc3
{[%clk 0:02:42.3]} 11... Qc7 {[%clk 0:02:19.5]} 12. a4 {[%clk 0:02:34.8]} 12...
Na5 {[%clk 0:02:12.3]} 13. Ba3 {[%clk 0:02:30.2]} 13... Rd8 {[%clk 0:01:57.1]}
14. c5 {[%clk 0:02:27.1]} 14... Ne8 {[%clk 0:01:51]} 15. Bb4 {[%clk 0:02:01.9]}
15... Nc6 {[%clk 0:01:45.9]} 16. Qd5 {[%clk 0:01:46.4]} 16... Nxd6 {[%clk
0:01:39]} 17. cxd6 {[%clk 0:01:47.2]} 17... Qb6 {[%clk 0:01:37.5]} 18. Bc5
{[%clk 0:01:40.4]} 18... Qa5 {[%clk 0:01:38.2]} 19. Qc4 {[%clk 0:01:06.4]} 19...
Rf8 {[%clk 0:01:25.9]} 20. Rab1 {[%clk 0:01:02.2]} 20... b5 {[%clk 0:01:08.1]}
21. axb5 {[%clk 0:01:00.4]} 21... axb5 {[%clk 0:01:08.7]} 22. Rxb5 {[%clk
0:01:00]} 22... Ba6 {[%clk 0:01:03.5]} 23. Rxa5 {[%clk 0:00:54.8]} 23... Bxc4
{[%clk 0:01:05]} 24. Rxa8 {[%clk 0:00:55.2]} 24... Rxa8 {[%clk 0:01:06.6]} 25.
Bxc6 {[%clk 0:00:54.8]} 25... dxc6 {[%clk 0:01:06.3]} 26. d7 {[%clk 0:00:41.4]}
26... Be6 {[%clk 0:01:02.1]} 27. Rd1 {[%clk 0:00:35.1]} 27... Rd8 {[%clk
0:01:02.2]} 28. e4 {[%clk 0:00:28.1]} 28... Rxd7 {[%clk 0:01:00.1]} 29. Rxd7
{[%clk 0:00:28.3]} 29... Bxd7 {[%clk 0:01:01.7]} 30. Bd6 {[%clk 0:00:29.5]}
30... f6 {[%clk 0:01:01.2]} 31. f3 {[%clk 0:00:29.1]} 31... Kf7 {[%clk 0:01:00]}
32. Kf2 {[%clk 0:00:30.4]} 32... Ke6 {[%clk 0:01:01]} 33. Bc7 {[%clk 0:00:31.3]}
33... c5 {[%clk 0:00:58.5]} 34. Ke3 {[%clk 0:00:32.4]} 34... Bb5 {[%clk
0:00:58.6]} 35. g4 {[%clk 0:00:30.8]} 35... g6 {[%clk 0:00:57.5]} 36. h4 {[%clk
0:00:31.2]} 36... f5 {[%clk 0:00:53.9]} 37. exf5+ {[%clk 0:00:30.6]} 37... gxf5
{[%clk 0:00:54.9]} 38. g5 {[%clk 0:00:31]} 38... c4 {[%clk 0:00:51.6]} 39. h5
{[%clk 0:00:23.2]} 39... Be8 {[%clk 0:00:51.4]} 40. g6 {[%clk 0:00:21.4]} 40...
hxg6 {[%clk 0:00:44.5]} 41. h6 {[%clk 0:00:22.7]} 41... Kf7 {[%clk 0:00:44.9]}
42. Bxe5 {[%clk 0:00:18.1]} 42... Kg8 {[%clk 0:00:45.5]} 43. Kd4 {[%clk
0:00:15.4]} 43... Bf7 {[%clk 0:00:39.6]} 44. Bg7 {[%clk 0:00:16.5]} 44... g5
{[%clk 0:00:37]} 45. Ke5 {[%clk 0:00:14.8]} 45... g4 {[%clk 0:00:36.6]} 46. f4
{[%clk 0:00:16]} 46... Bg6 {[%clk 0:00:33.3]} 47. Kf6 {[%clk 0:00:13.7]} 47...
Kh7 {[%clk 0:00:32.3]} 48. Kg5 {[%clk 0:00:14.3]} 48... g3 {[%clk 0:00:25.5]}
49. Bf8 {[%clk 0:00:11.9]} 49... g2 {[%clk 0:00:23.2]} 50. Bc5 {[%clk
0:00:11.6]} 50... Be8 {[%clk 0:00:19.5]} 51. Kxf5 {[%clk 0:00:12.7]} 51... Kxh6
{[%clk 0:00:19.7]} 52. Kf6 {[%clk 0:00:13.9]} 52... Bc6 {[%clk 0:00:15]} 53. f5
{[%clk 0:00:14.7]} 53... Kh7 {[%clk 0:00:15.7]} 54. Kf7 {[%clk 0:00:13.3]} 54...
Bd5+ {[%clk 0:00:16]} 55. Kf8 {[%clk 0:00:14.1]} 55... Kh6 {[%clk 0:00:16.7]}
56. f6 {[%clk 0:00:14.3]} 56... Kg6 {[%clk 0:00:17.4]} 57. Ke7 {[%clk
0:00:15.6]} 57... Bf7 {[%clk 0:00:17.3]} 58. Bd4 {[%clk 0:00:16.6]} 58... Bg8
{[%clk 0:00:17.9]} 59. Kf8 {[%clk 0:00:15]} 59... Bd5 {[%clk 0:00:18]} 60. Ke7
{[%clk 0:00:15.7]} 60... Bf7 {[%clk 0:00:18.3]} 61. Bg1 {[%clk 0:00:14.6]} 61...
Bd5 {[%clk 0:00:18.8]} 62. Kd6 {[%clk 0:00:13.8]} 62... Bf7 {[%clk 0:00:19]} 63.
Bd4 {[%clk 0:00:14.1]} 63... g1=Q {[%clk 0:00:16.7]} 64. Bxg1 {[%clk 0:00:14.2]}
64... Kxf6 {[%clk 0:00:18.2]} 65. Bd4+ {[%clk 0:00:15.1]} 65... Kf5 {[%clk
0:00:18.8]} 66. Ke7 {[%clk 0:00:15.5]} 66... Bd5 {[%clk 0:00:19.2]} 67. Kd6
{[%clk 0:00:16.5]} 67... Be4 {[%clk 0:00:20]} 68. Kc5 {[%clk 0:00:17.3]} 68...
Bd3 {[%clk 0:00:21.3]} 69. Kd5 {[%clk 0:00:17.5]} 1/2-1/2

[Event "*** Titled Tuesday Blitz"]
[Site "Chess.com"]
[Date "2020.01.07"]
[Round "6"]
[White "AlexanderKing"]
[Black "karwowskikacper"]
[Result "1/2-1/2"]
[WhiteElo "2546"]
[BlackElo "2428"]
[TimeControl "180+2"]
[EndTime "14:26:35 PST"]
[Termination "Game drawn - insufficient material"]

1. e4 {[%clk 0:03:01.9]} 1... c5 {[%clk 0:03:00.3]} 2. Nf3 {[%clk 0:03:03]} 2...
Nc6 {[%clk 0:02:59.3]} 3. d4 {[%clk 0:03:04.1]} 3... cxd4 {[%clk 0:03:01.2]} 4.
Nxd4 {[%clk 0:03:05.8]} 4... e6 {[%clk 0:03:02.4]} 5. Nc3 {[%clk 0:03:06.2]}
5... a6 {[%clk 0:03:01.7]} 6. Be3 {[%clk 0:03:06.5]} 6... Qc7 {[%clk 0:03:02.1]}
7. Qf3 {[%clk 0:03:04]} 7... Nf6 {[%clk 0:03:02.6]} 8. Bd3 {[%clk 0:02:55.5]}
8... Ne5 {[%clk 0:03:01.2]} 9. Qg3 {[%clk 0:02:56.2]} 9... Nxd3+ {[%clk
0:03:00.6]} 10. cxd3 {[%clk 0:02:58.1]} 10... Qxg3 {[%clk 0:03:01.9]} 11. hxg3
{[%clk 0:02:59.7]} 11... Bb4 {[%clk 0:02:55.6]} 12. Ke2 {[%clk 0:02:59.9]} 12...
d6 {[%clk 0:02:50.2]} 13. Na4 {[%clk 0:02:59.5]} 13... O-O {[%clk 0:02:40.4]}
14. Nb3 {[%clk 0:02:53.6]} 14... Bd7 {[%clk 0:01:51.3]} 15. Nb6 {[%clk
0:02:48.3]} 15... Rad8 {[%clk 0:01:38.3]} 16. a3 {[%clk 0:02:44]} 16... Bc5
{[%clk 0:01:27.5]} 17. Nxc5 {[%clk 0:02:35.9]} 17... dxc5 {[%clk 0:01:28]} 18.
Bxc5 {[%clk 0:02:36.9]} 18... Rfe8 {[%clk 0:01:28.3]} 19. Nxd7 {[%clk
0:02:33.5]} 19... Nxd7 {[%clk 0:01:20.7]} 20. Be3 {[%clk 0:02:28.4]} 20... Ne5
{[%clk 0:01:13.4]} 21. Rhd1 {[%clk 0:02:18.4]} 21... Rd7 {[%clk 0:01:09.8]} 22.
d4 {[%clk 0:02:05.5]} 22... Nc6 {[%clk 0:01:05]} 23. Rd3 {[%clk 0:02:01.4]}
23... Red8 {[%clk 0:00:55.7]} 24. Rad1 {[%clk 0:02:02.2]} 24... f6 {[%clk
0:00:55.8]} 25. f3 {[%clk 0:01:57.5]} 25... Kf7 {[%clk 0:00:56]} 26. Bf2 {[%clk
0:01:36.2]} 26... Na5 {[%clk 0:00:50.7]} 27. Be1 {[%clk 0:01:26.2]} 27... Nc4
{[%clk 0:00:44.8]} 28. Bc3 {[%clk 0:01:21]} 28... b5 {[%clk 0:00:36.3]} 29. Ra1
{[%clk 0:01:04.9]} 29... Ne5 {[%clk 0:00:32.1]} 30. Rd2 {[%clk 0:00:58.3]} 30...
Nc6 {[%clk 0:00:30.9]} 31. Rad1 {[%clk 0:00:56.9]} 31... b4 {[%clk 0:00:15.6]}
32. axb4 {[%clk 0:00:54.8]} 32... Rb8 {[%clk 0:00:16]} 33. d5 {[%clk 0:00:51.1]}
33... exd5 {[%clk 0:00:14.7]} 34. Rxd5 {[%clk 0:00:52]} 34... Rxd5 {[%clk
0:00:14.8]} 35. Rxd5 {[%clk 0:00:53.9]} 35... Nxb4 {[%clk 0:00:16.3]} 36. Rd7+
{[%clk 0:00:51.7]} 36... Kg6 {[%clk 0:00:14]} 37. Ra7 {[%clk 0:00:49.3]} 37...
Rb6 {[%clk 0:00:12.7]} 38. g4 {[%clk 0:00:41.2]} 38... Na2 {[%clk 0:00:11.7]}
39. Bd4 {[%clk 0:00:40.5]} 39... Rc6 {[%clk 0:00:13]} 40. Kd2 {[%clk 0:00:36.6]}
40... Rd6 {[%clk 0:00:11]} 41. Ke3 {[%clk 0:00:35.1]} 41... Nb4 {[%clk
0:00:12.2]} 42. Bc5 {[%clk 0:00:36.3]} 42... Nc2+ {[%clk 0:00:12.9]} 43. Ke2
{[%clk 0:00:29.2]} 43... Rc6 {[%clk 0:00:13.9]} 44. b4 {[%clk 0:00:27.2]} 44...
Na3 {[%clk 0:00:08]} 45. Bf8 {[%clk 0:00:18.3]} 45... Kg5 {[%clk 0:00:04.8]} 46.
Rxg7+ {[%clk 0:00:16.3]} 46... Kf4 {[%clk 0:00:06.2]} 47. Rxh7 {[%clk
0:00:11.7]} 47... Rc2+ {[%clk 0:00:06.6]} 48. Kd3 {[%clk 0:00:13.1]} 48... Rxg2
{[%clk 0:00:08]} 49. Rf7 {[%clk 0:00:10.1]} 49... Kxf3 {[%clk 0:00:09.3]} 50.
Rxf6+ {[%clk 0:00:10.9]} 50... Kxg4 {[%clk 0:00:10.6]} 51. Rg6+ {[%clk 0:00:08]}
51... Kf3 {[%clk 0:00:10.4]} 52. Rxg2 {[%clk 0:00:09.9]} 52... Kxg2 {[%clk
0:00:12.3]} 53. e5 {[%clk 0:00:10.6]} 53... Kf3 {[%clk 0:00:13.4]} 54. e6 {[%clk
0:00:07.8]} 54... Nb5 {[%clk 0:00:14.4]} 55. e7 {[%clk 0:00:02.9]} 55... Nc7
{[%clk 0:00:15.1]} 56. Bg7 {[%clk 0:00:02.2]} 56... Kf4 {[%clk 0:00:13.8]} 57.
Bd4 {[%clk 0:00:02.4]} 57... Kf5 {[%clk 0:00:14.1]} 58. Bb6 {[%clk 0:00:03]}
58... Ne8 {[%clk 0:00:15.2]} 59. Kc4 {[%clk 0:00:03.1]} 59... Ke6 {[%clk
0:00:16.3]} 60. Bd8 {[%clk 0:00:04.3]} 60... Kd7 {[%clk 0:00:17.3]} 61. Kc5
{[%clk 0:00:05.5]} 61... Nd6 {[%clk 0:00:18.5]} 62. Kb6 {[%clk 0:00:05.4]} 62...
Nc8+ {[%clk 0:00:17.4]} 63. Kxa6 {[%clk 0:00:06.4]} 63... Nd6 {[%clk 0:00:17.7]}
64. b5 {[%clk 0:00:07.1]} 64... Kc8 {[%clk 0:00:18.8]} 65. Kb6 {[%clk
0:00:05.6]} 65... Ne8 {[%clk 0:00:16.5]} 66. Kc6 {[%clk 0:00:06.4]} 66... Nf6
{[%clk 0:00:15.7]} 67. b6 {[%clk 0:00:07.4]} 67... Ne8 {[%clk 0:00:16.6]} 68.
Bc7 {[%clk 0:00:03.5]} 68... Nxc7 {[%clk 0:00:16.9]} 69. b7+ {[%clk 0:00:02.2]}
69... Kb8 {[%clk 0:00:17.8]} 70. Kb6 {[%clk 0:00:02.7]} 70... Ne8 {[%clk
0:00:18.3]} 71. Ka6 {[%clk 0:00:02.9]} 71... Nc7+ {[%clk 0:00:19.1]} 72. Kb6
{[%clk 0:00:04]} 72... Nd5+ {[%clk 0:00:20.4]} 73. Kc6 {[%clk 0:00:05.6]} 73...
Nxe7+ {[%clk 0:00:22.3]} 74. Kd7 {[%clk 0:00:06.5]} 74... Kxb7 {[%clk
0:00:23.4]} 1/2-1/2